[Event "EYTCC Girls U18 2022"]
[Site "Thessaloniki"]
[Date "2022.07.12"]
[Round "1.9"]
[White "Ruzic, Pia Marie"]
[Black "Alexandri, Dimitra"]
[Result "1-0"]
[ECO "E92"]
[WhiteElo "2025"]
[BlackElo "1683"]
[Annotator "ChessBase"]
[PlyCount "125"]
[EventDate "2022.07.12"]
[EventType "team-tourn"]
[EventCountry "GRE"]
[SourceTitle "playchess.com"]
[Source "ChessBase"]
[SourceQuality "1"]
[WhiteTeam "Slovenia"]
[BlackTeam "Greece"]
[WhiteTeamCountry "SLO"]
[BlackTeamCountry "GRE"]
[TimeControl "40/5400+30:1800+30"]

1. Nf3 {[%emt 0:00:04]} g6 {[%emt 0:00:12]} 2. c4 {[%emt 0:00:35]} Bg7 {[%emt 0:00:08]} 3. Nc3 {[%emt 0:00:07]} d6 {[%emt 0:00:08]} 4. d4 {[%emt 0:00:23]} Nf6 {[%emt 0:00:12]} 5. e4 {[%emt 0:00:32]} O-O {[%emt 0:00:12]} 6. Be2 {[%emt 0:00:10]} e5 {[%emt 0:00:09]} 7. Be3 {[%emt 0:00:29]} Nc6 {[%emt 0:14:18]} 8. d5 {[%emt 0:00:31]} Ne7 {[%emt 0:09:59]} 9. Nd2 {[%emt 0:00:27]} Nd7 {[%emt 0:00:23]} 10. O-O {[%emt 0:02:40]} f5 {[%emt 0:00:47]} 11. f3 {[%emt 0:00:05]} f4 {[%emt 0:00:12]} 12. Bf2 {[%emt 0:00:06]} g5 {[%emt 0:00:33]} 13. b4 {[%emt 0:03:57]} h5 {[%emt 0:13:44]} 14. c5 {[%emt 0:03:10]} Nf6 {[%emt 0:01:48]} 15. Nc4 {[%emt 0:08:31]} a6 {[%emt 0:16:15]} 16. cxd6 {[%emt 0:04:11]} cxd6 {[%emt 0:00:10]} 17. Nb6 {[%emt 0:17:49]} Rb8 {[%emt 0:00:11]} 18. a4 {[%emt 0:00:18]} Ng6 {[%emt 0:06:31]} 19. a5 {[%emt 0:01:03]} g4 {[%emt 0:02:02]} 20. Nxc8 {[%emt 0:07:08]} Qxc8 {[%emt 0:00:26]} 21. Rc1 {[%emt 0:05:04]} Qd7 {[%emt 0:02:45]} 22. Na4 {[%emt 0:01:06]} gxf3 23. Bxf3 {[%emt 0:00:37]} h4 {[%emt 0:06:23]} 24. Nb6 {[%emt 0:02:33]} Qb5 {[%emt 0:04:36]} 25. Qb3 {[%emt 0:05:44]} Rf7 {[%emt 0:06:06]} 26. Rc2 {[%emt 0:02:36]} Bf8 {[%emt 0:02:17]} 27. Rfc1 {[%emt 0:02:01]} Qe8 {[%emt 0:00:32]} 28. h3 {[%emt 0:02:25]} Rg7 {[%emt 0:01:52]} 29. Qa4 {[%emt 0:04:30]} Qf7 {[%emt 0:02:46]} 30. Rc3 {[%emt 0:07:33]} Nh7 {[%emt 0:04:31]} 31. Bg4 {[%emt 0:03:22]} Ng5 {[%emt 0:01:06]} 32. Nd7 {[%emt 0:03:58]} Rd8 {[%emt 0:00:48]} 33. Nxf8 {[%emt 0:04:15]} Rxf8 {[%emt 0:00:22]} 34. Bb6 {[%emt 0:00:42]} Qf6 {[%emt 0:00:48]} 35. Qc2 {[%emt 0:01:38]} Rgf7 {[%emt 0:01:20]} 36. Qe2 {[%emt 0:02:22]} Kg7 {[%emt 0:00:45]} 37. Bf2 {[%emt 0:04:09]} Rh8 {[%emt 0:01:42]} 38. Rc7 {[%emt 0:01:10]} Rhf8 {[%emt 0:01:30]} 39. R7c3 {[%emt 0:01:19]} Rh8 {[%emt 0:00:12]} 40. R1c2 {[%emt 0:00:00]} Qe7 {[%emt 0:00:00]} 41. Rb2 {[%emt 0:03:59]} Rhf8 {[%emt 0:09:19]} 42. Bf3 {[%emt 0:01:54]} Nxf3+ {[%emt 0:01:43]} 43. Qxf3 {[%emt 0:00:05]} Qd7 {[%emt 0:00:56]} 44. Rbc2 {[%emt 0:01:50]} Qb5 {[%emt 0:01:39]} 45. Rc4 {[%emt 0:01:36]} Qd7 {[%emt 0:01:27]} 46. R2c3 {[%emt 0:01:04]} Rh8 {[%emt 0:03:50]} 47. Kh2 {[%emt 0:02:59]} Rhf8 {[%emt 0:01:56]} 48. Bb6 {[%emt 0:04:39]} Qb5 {[%emt 0:02:26]} 49. Rc2 {[%emt 0:03:47]} Qa4 {[%emt 0:03:55]} 50. Qg4 {[%emt 0:01:49]} Qd7 {[%emt 0:00:55]} 51. Rc7 {[%emt 0:04:26]} Qb5 {[%emt 0:03:21]} 52. R2c4 {[%emt 0:01:30]} Qe8 {[%emt 0:03:38]} 53. Rc8 {[%emt 0:01:28]} Qb5 {[%emt 0:01:12]} 54. Rxf8 {[%emt 0:02:48]} Rxf8 {[%emt 0:01:29]} 55. Rc7+ {[%emt 0:00:07]} Kh6 {[%emt 0:00:18]} 56. Bf2 {[%emt 0:02:04]} Rg8 {[%emt 0:00:56]} 57. Bxh4 {[%emt 0:00:18]} Rg7 {[%emt 0:00:17]} 58. Bg5+ {[%emt 0:02:01]} Kh7 {[%emt 0:00:09]} 59. Qh5+ {[%emt 0:00:09]} Kg8 {[%emt 0:00:10]} 60. Rxg7+ {[%emt 0:00:07]} Kxg7 {[%emt 0:00:06]} 61. Qh6+ {[%emt 0:00:03]} Kf7 {[%emt 0:00:13]} 62. Qh7+ {[%emt 0:00:02]} Kf8 {[%emt 0:00:11]} 63. Qxg6 {[%emt 0:00:54]} 1-0

[Event "EYTCC Girls U18 2022"]
[Site "Thessaloniki"]
[Date "2022.07.12"]
[Round "1.10"]
[White "Alexandri, Vasiliki"]
[Black "Mihelic, Vesna"]
[Result "0-1"]
[ECO "D37"]
[WhiteElo "1527"]
[BlackElo "2029"]
[Annotator "ChessBase"]
[PlyCount "70"]
[EventDate "2022.07.12"]
[EventType "team-tourn"]
[EventCountry "GRE"]
[SourceTitle "playchess.com"]
[Source "ChessBase"]
[SourceQuality "1"]
[WhiteTeam "Greece"]
[BlackTeam "Slovenia"]
[WhiteTeamCountry "GRE"]
[BlackTeamCountry "SLO"]
[TimeControl "40/5400+30:1800+30"]

1. d4 {[%emt 0:00:03]} d5 {[%emt 0:00:07]} 2. c4 {[%emt 0:00:14]} e6 {[%emt 0:00:06]} 3. Nc3 {[%emt 0:00:11]} Nf6 {[%emt 0:00:07]} 4. Nf3 {[%emt 0:00:10]} Be7 {[%emt 0:00:08]} 5. Bf4 {[%emt 0:00:11]} O-O {[%emt 0:00:29]} 6. e3 {[%emt 0:00:20]} b6 {[%emt 0:00:13]} 7. Rc1 {[%emt 0:00:19]} c5 {[%emt 0:00:23]} 8. dxc5 {[%emt 0:00:26]} bxc5 {[%emt 0:00:47]} 9. Be2 {[%emt 0:00:32]} Bb7 {[%emt 0:01:46]} 10. O-O {[%emt 0:02:18]} Nbd7 {[%emt 0:12:52]} 11. cxd5 {[%emt 0:11:49]} Nxd5 {[%emt 0:02:07]} 12. Nxd5 {[%emt 0:02:31]} Bxd5 {[%emt 0:09:22]} 13. Nd2 {[%emt 0:07:03]} Nb6 {[%emt 0:17:38]} 14. Bf3 {[%emt 0:04:57]} Rc8 {[%emt 0:04:55]} 15. Bxd5 {[%emt 0:07:03]} exd5 {[%emt 0:05:30]} 16. Nb3 {[%emt 0:04:17]} Nc4 {[%emt 0:03:29]} 17. Qe2 {[%emt 0:01:07]} Bf6 {[%emt 0:06:47]} 18. Rc2 {[%emt 0:02:06]} Qb6 {[%emt 0:01:06]} 19. Rb1 {[%emt 0:15:00]} a5 {[%emt 0:01:18]} 20. Nd2 {[%emt 0:07:35]} Ne5 {[%emt 0:13:35]} 21. Nf3 {[%emt 0:03:26]} Nc4 {[%emt 0:03:15]} 22. Nd2 {[%emt 0:04:00]} Nxd2 {[%emt 0:00:23]} 23. Rxd2 {[%emt 0:01:11]} d4 {[%emt 0:04:07]} 24. Qc4 {[%emt 0:06:22]} Rfd8 {[%emt 0:04:41]} 25. Rd3 {[%emt 0:07:11]} Qe6 {[%emt 0:02:44]} 26. Qxe6 {[%emt 0:01:34]} fxe6 {[%emt 0:00:01]} 27. exd4 {[%emt 0:06:02]} cxd4 {[%emt 0:04:20]} 28. f3 {[%emt 0:01:41]} Rc2 {[%emt 0:00:26]} 29. Rd2 {[%emt 0:02:04]} d3 {[%emt 0:00:23]} 30. a3 {[%emt 0:02:35]} g5 {[%emt 0:01:41]} 31. Be3 {[%emt 0:00:21]} Bd4 {[%emt 0:00:14]} 32. Bxd4 {[%emt 0:00:02]} Rxd2 {[%emt 0:00:03]} 33. Bc3 {[%emt 0:00:42]} Rc2 {[%emt 0:00:23]} 34. Rd1 {[%emt 0:00:32]} a4 {[%emt 0:00:13]} 35. Kf1 {[%emt 0:01:10]} Kf7 {[%emt 0:00:11]} 0-1

[Event "EYTCC Girls U18 2022"]
[Site "Thessaloniki"]
[Date "2022.07.12"]
[Round "1.12"]
[White "Kochavi, Dana"]
[Black "Guid, Taja"]
[Result "1/2-1/2"]
[ECO "C10"]
[WhiteElo "1885"]
[BlackElo "1479"]
[Annotator "NA"]
[PlyCount "62"]
[EventDate "2022.07.12"]
[EventType "team-tourn"]
[EventCountry "GRE"]
[SourceTitle "playchess.com"]
[Source "ChessBase"]
[SourceQuality "1"]
[WhiteTeam "Israel"]
[BlackTeam "Slovenia"]
[WhiteTeamCountry "ISR"]
[BlackTeamCountry "SLO"]
[TimeControl "40/5400+30:1800+30"]

1. e4 {[%emt 0:00:03]} e6 {[%emt 0:00:07]} 2. d4 {[%emt 0:00:04]} d5 {[%emt 0:00:08]} 3. Nd2 {[%emt 0:00:04]} dxe4 {[%emt 0:00:07]} 4. Nxe4 {[%emt 0:00:15]} Nd7 {[%emt 0:00:22]} 5. Nf3 {[%emt 0:00:06]} Ngf6 {[%emt 0:00:09]} 6. Nxf6+ {[%emt 0:00:10]} Nxf6 {[%emt 0:00:07]} 7. c3 {[%emt 0:00:09]} c5 {[%emt 0:03:33]} 8. Ne5 {[%emt 0:00:06]} a6 {[%emt 0:10:28]} 9. Be3 {[%emt 0:00:07]} Qc7 {[%emt 0:03:58]} 10. Be2 {[%emt 0:07:59]} Be7 {[%emt 0:03:59]} 11. Qa4+ {[%emt 0:08:34]} Bd7 {[%emt 0:06:14]} 12. Nxd7 {[%emt 0:00:34]} Qxd7 {[%emt 0:04:39]} 13. Qxd7+ {[%emt 0:00:18]} Nxd7 {[%emt 0:00:06]} 14. Bf3 {[%emt 0:00:13]} O-O-O {[%emt 0:04:22]} 15. Rc1 {[%emt 0:02:04]} Kb8 {[%emt 0:03:48]} 16. O-O {[%emt 0:26:45]} cxd4 {[%emt 0:06:20]} 17. cxd4 {[%emt 0:03:28]} Nf6 {[%emt 0:01:55]} 18. Rc2 {[%emt 0:04:00]} Rd7 {[%emt 0:16:24]} 19. Rfc1 {[%emt 0:01:10]} Rhd8 {[%emt 0:01:23]} 20. a3 {[%emt 0:02:52]} Bd6 {[%emt 0:08:15]} 21. b4 {[%emt 0:07:45]} Rc7 {[%emt 0:05:02]} 22. Rxc7 {[%emt 0:09:59]} Bxc7 {[%emt 0:00:04]} 23. a4 {[%emt 0:01:21]} Nd5 {[%emt 0:01:53]} 24. Bxd5 {[%emt 0:03:18]} Rxd5 {[%emt 0:00:37]} 25. f4 {[%emt 0:02:09]} Kc8 {[%emt 0:02:24]} 26. Kf2 {[%emt 0:02:13]} Kd7 {[%emt 0:00:31]} 27. h3 {[%emt 0:02:26]} Bb6 {[%emt 0:01:01]} 28. Rd1 {[%emt 0:02:50]} Ba7 {[%emt 0:01:33]} 29. Kf3 {[%emt 0:01:12]} Bb6 {[%emt 0:01:08]} 30. Ke4 {[%emt 0:03:11]} g6 {[%emt 0:01:46]} 31. Rd2 {[%emt 0:05:03]} Kd6 {[%emt 0:00:49]} 1/2-1/2

[Event "EYTCC Girls U18 2022"]
[Site "Thessaloniki"]
[Date "2022.07.13"]
[Round "2.1"]
[White "Wikar, Martyna"]
[Black "Lehaci, Miruna-Daria"]
[Result "1/2-1/2"]
[ECO "B50"]
[WhiteElo "2208"]
[BlackElo "2193"]
[Annotator "ChessBase"]
[PlyCount "109"]
[EventDate "2022.07.12"]
[EventType "team-tourn"]
[EventCountry "GRE"]
[SourceTitle "playchess.com"]
[Source "ChessBase"]
[SourceQuality "1"]
[WhiteTeam "Poland"]
[BlackTeam "Romania"]
[WhiteTeamCountry "POL"]
[BlackTeamCountry "ROU"]
[TimeControl "40/5400+30:1800+30"]

1. e4 {[%emt 0:00:04]} c5 {[%emt 0:00:09]} 2. Nf3 {[%emt 0:00:17]} d6 {[%emt 0:00:06]} 3. Bc4 {[%emt 0:00:23]} Nf6 {[%emt 0:00:21]} 4. d3 {[%emt 0:00:07]} Nc6 {[%emt 0:00:08]} 5. Bb3 {[%emt 0:00:26]} Bg4 {[%emt 0:01:54]} 6. c3 {[%emt 0:01:04]} e6 {[%emt 0:02:32]} 7. h3 {[%emt 0:00:45]} Bh5 {[%emt 0:00:22]} 8. Bf4 {[%emt 0:04:14]} Be7 {[%emt 0:03:09]} 9. Nbd2 {[%emt 0:00:34]} Rc8 {[%emt 0:07:13]} 10. Qe2 {[%emt 0:02:57]} a6 {[%emt 0:02:26]} 11. g4 {[%emt 0:05:39]} Bg6 {[%emt 0:00:14]} 12. Nh4 {[%emt 0:04:27]} Nd7 {[%emt 0:08:03]} 13. Nxg6 {[%emt 0:00:57]} hxg6 {[%emt 0:00:05]} 14. Bg3 {[%emt 0:01:33]} b5 {[%emt 0:03:10]} 15. Kf1 {[%emt 0:01:56]} g5 {[%emt 0:02:29]} 16. Nf3 {[%emt 0:02:41]} Nf8 {[%emt 0:09:05]} 17. Rd1 {[%emt 0:01:50]} Ng6 {[%emt 0:02:41]} 18. d4 {[%emt 0:03:37]} cxd4 {[%emt 0:00:52]} 19. Nxd4 {[%emt 0:01:40]} Nxd4 {[%emt 0:06:22]} 20. Rxd4 {[%emt 0:07:28]} Qb6 {[%emt 0:02:34]} 21. a4 {[%emt 0:03:59]} O-O {[%emt 0:03:10]} 22. axb5 {[%emt 0:03:26]} axb5 {[%emt 0:00:48]} 23. Rb4 {[%emt 0:01:30]} Rc5 {[%emt 0:05:50]} 24. Bc2 {[%emt 0:07:44]} Rb8 {[%emt 0:03:40]} 25. Kg2 {[%emt 0:02:33]} Bf6 {[%emt 0:04:06]} 26. Rd1 {[%emt 0:03:11]} Be5 {[%emt 0:00:59]} 27. Bxe5 {[%emt 0:00:41]} dxe5 {[%emt 0:01:56]} 28. Qd2 {[%emt 0:07:10]} Nf4+ {[%emt 0:01:01]} 29. Kg3 {[%emt 0:00:05]} Rc4 {[%emt 0:04:02]} 30. Rb3 {[%emt 0:01:09]} g6 {[%emt 0:04:09]} 31. Qd6 {[%emt 0:02:06]} Ne2+ {[%emt 0:01:02]} 32. Kg2 {[%emt 0:01:04]} Nf4+ {[%emt 0:00:13]} 33. Kf3 {[%emt 0:02:59]} Qxd6 {[%emt 0:04:26]} 34. Rxd6 {[%emt 0:00:18]} Kg7 {[%emt 0:05:20]} 35. Bd3 {[%emt 0:06:07]} Nxd3 {[%emt 0:03:21]} 36. Rxd3 {[%emt 0:00:03]} f5 {[%emt 0:03:38]} 37. Rd7+ {[%emt 0:00:58]} Kf6 {[%emt 0:00:20]} 38. exf5 {[%emt 0:04:08]} gxf5 {[%emt 0:00:20]} 39. gxf5 {[%emt 0:06:10]} e4+ {[%emt 0:01:07]} 40. Ke2 {[%emt 0:00:00]} exf5 {[%emt 0:00:00]} 41. Ra3 {[%emt 0:03:54]} b4 {[%emt 0:09:44]} 42. Ra6+ {[%emt 0:03:11]} Ke5 {[%emt 0:00:10]} 43. Ra5+ {[%emt 0:01:26]} Ke6 {[%emt 0:00:48]} 44. Rh7 {[%emt 0:01:40]} bxc3 {[%emt 0:03:41]} 45. bxc3 {[%emt 0:02:07]} Rxc3 {[%emt 0:00:56]} 46. Rh6+ {[%emt 0:00:09]} Kf7 {[%emt 0:00:05]} 47. Ra7+ {[%emt 0:05:47]} Kg8 {[%emt 0:00:14]} 48. Rg6+ {[%emt 0:04:54]} Kh8 {[%emt 0:00:25]} 49. Rxg5 {[%emt 0:01:00]} Rb2+ {[%emt 0:04:02]} 50. Kf1 {[%emt 0:00:56]} Rf3 {[%emt 0:01:48]} 51. Rag7 {[%emt 0:06:02]} Rbxf2+ {[%emt 0:02:06]} 52. Ke1 {[%emt 0:00:56]} Rf1+ {[%emt 0:00:14]} 53. Ke2 {[%emt 0:00:07]} R1f2+ {[%emt 0:00:34]} 54. Ke1 {[%emt 0:00:06]} Rf1+ {[%emt 0:00:04]} 55. Ke2 {[%emt 0:00:04]} 1/2-1/2

[Event "EYTCC Girls U18 2022"]
[Site "Thessaloniki"]
[Date "2022.07.13"]
[Round "2.2"]
[White "Demeter, Dorina"]
[Black "Ruzic, Pia Marie"]
[Result "*"]
[ECO "E10"]
[WhiteElo "2176"]
[BlackElo "2025"]
[Annotator "ChessBase"]
[PlyCount "20"]
[EventDate "2022.07.12"]
[EventType "team-tourn"]
[EventCountry "GRE"]
[SourceTitle "playchess.com"]
[Source "ChessBase"]
[SourceQuality "1"]
[WhiteTeam "Hungary"]
[BlackTeam "Slovenia"]
[WhiteTeamCountry "HUN"]
[BlackTeamCountry "SLO"]
[TimeControl "40/5400+30:1800+30"]

1. d4 {[%emt 0:00:04]} Nf6 {[%emt 0:00:07]} 2. c4 {[%emt 0:00:05]} e6 {[%emt 0:00:05]} 3. Nf3 {[%emt 0:00:07]} c5 {[%emt 0:00:09]} 4. d5 {[%emt 0:00:16]} b5 {[%emt 0:00:07]} 5. Bg5 {[%emt 0:03:47]} exd5 {[%emt 0:00:19]} 6. cxd5 {[%emt 0:00:08]} h6 {[%emt 0:00:07]} 7. Bxf6 {[%emt 0:03:13]} Qxf6 {[%emt 0:00:11]} 8. Qc2 {[%emt 0:00:42]} c4 {[%emt 0:02:18]} 9. e4 {[%emt 0:04:43]} Bb4+ {[%emt 0:03:59]} 10. Nbd2 {[%emt 0:03:02]} O-O {[%emt 0:04:41]} *

[Event "EYTCC Girls U18 2022"]
[Site "Thessaloniki"]
[Date "2022.07.13"]
[Round "2.2"]
[White "Ciolacu, Alessia-Mihaela"]
[Black "Marcinczyk, Monika"]
[Result "1-0"]
[ECO "E10"]
[WhiteElo "2163"]
[BlackElo "1991"]
[Annotator "ChessBase"]
[PlyCount "53"]
[EventDate "2022.07.12"]
[EventType "team-tourn"]
[EventCountry "GRE"]
[SourceTitle "playchess.com"]
[Source "ChessBase"]
[SourceQuality "1"]
[WhiteTeam "Romania"]
[BlackTeam "Poland"]
[WhiteTeamCountry "ROU"]
[BlackTeamCountry "POL"]
[TimeControl "40/5400+30:1800+30"]

1. d4 {[%emt 0:00:04]} Nf6 {[%emt 0:00:07]} 2. c4 {[%emt 0:00:05]} e6 {[%emt 0:00:05]} 3. Nf3 {[%emt 0:00:07]} c5 {[%emt 0:00:09]} 4. d5 {[%emt 0:00:16]} b5 {[%emt 0:00:07]} 5. Bg5 {[%emt 0:03:47]} exd5 {[%emt 0:00:19]} 6. cxd5 {[%emt 0:00:08]} h6 {[%emt 0:00:07]} 7. Bxf6 {[%emt 0:03:13]} Qxf6 {[%emt 0:00:11]} 8. Qc2 {[%emt 0:00:42]} c4 {[%emt 0:02:18]} 9. e4 {[%emt 0:04:43]} Bb4+ {[%emt 0:03:59]} 10. Nbd2 {[%emt 0:03:02]} O-O {[%emt 0:04:41]} 11. Be2 {[%emt 0:12:35]} c3 {[%emt 0:10:04]} 12. bxc3 {[%emt 0:04:14]} Bxc3 {[%emt 0:01:31]} 13. Rc1 {[%emt 0:01:32]} b4 {[%emt 0:01:00]} 14. O-O {[%emt 0:11:37]} Ba6 {[%emt 0:04:06]} 15. e5 {[%emt 0:10:45]} Bxe5 {[%emt 0:26:37]} 16. Ne4 {[%emt 0:00:32]} Qe7 {[%emt 0:01:40]} 17. Bxa6 {[%emt 0:00:36]} Nxa6 {[%emt 0:00:21]} 18. Qc4 {[%emt 0:00:30]} Bf4 {[%emt 0:05:43]} 19. Rce1 {[%emt 0:01:38]} Nc7 {[%emt 0:09:36]} 20. Ng3 {[%emt 0:01:00]} Qd6 {[%emt 0:04:56]} 21. Nf5 {[%emt 0:00:28]} Qf6 {[%emt 0:00:30]} 22. Qxf4 {[%emt 0:00:08]} Nxd5 {[%emt 0:00:06]} 23. Qe4 {[%emt 0:07:02]} Nc3 {[%emt 0:01:25]} 24. Ne7+ {[%emt 0:01:02]} Kh8 {[%emt 0:00:08]} 25. Qxb4 {[%emt 0:02:13]} Rfe8 {[%emt 0:03:27]} 26. Re3 {[%emt 0:01:03]} Nxa2 {[%emt 0:02:38]} 27. Qa3 {[%emt 0:00:26]} 1-0

[Event "EYTCC Girls U18 2022"]
[Site "Thessaloniki"]
[Date "2022.07.13"]
[Round "2.3"]
[White "Demeter, Dorina"]
[Black "Ruzic, Pia Marie"]
[Result "1/2-1/2"]
[ECO "A05"]
[WhiteElo "2176"]
[BlackElo "2025"]
[Annotator "ChessBase"]
[PlyCount "96"]
[EventDate "2022.07.12"]
[EventType "team-tourn"]
[EventCountry "GRE"]
[SourceTitle "playchess.com"]
[Source "ChessBase"]
[SourceQuality "1"]
[WhiteTeam "Hungary"]
[BlackTeam "Slovenia"]
[WhiteTeamCountry "HUN"]
[BlackTeamCountry "SLO"]
[TimeControl "40/5400+30:1800+30"]

1. Nf3 {[%emt 0:00:10]} Nf6 {[%emt 0:00:07]} 2. c4 {[%emt 0:00:16]} g6 {[%emt 0:00:10]} 3. Nc3 {[%emt 0:00:07]} Bg7 {[%emt 0:00:11]} 4. e4 {[%emt 0:00:15]} d6 {[%emt 0:00:09]} 5. d4 {[%emt 0:00:07]} O-O {[%emt 0:00:17]} 6. h3 {[%emt 0:00:10]} e5 {[%emt 0:00:36]} 7. d5 {[%emt 0:00:07]} Nh5 {[%emt 0:00:55]} 8. g3 {[%emt 0:01:10]} Na6 {[%emt 0:00:54]} 9. Bd3 {[%emt 0:15:54]} Nc5 {[%emt 0:05:23]} 10. Bc2 {[%emt 0:00:19]} f5 {[%emt 0:18:24]} 11. exf5 {[%emt 0:03:08]} gxf5 {[%emt 0:10:23]} 12. Ng5 {[%emt 0:16:04]} Qe8 {[%emt 0:08:15]} 13. Nb5 {[%emt 0:09:10]} Na6 {[%emt 0:00:39]} 14. Ne6 {[%emt 0:03:01]} Bxe6 {[%emt 0:13:13]} 15. dxe6 {[%emt 0:00:06]} e4 {[%emt 0:16:41]} 16. e7 {[%emt 0:08:57]} Qxe7 {[%emt 0:00:17]} 17. Qxh5 {[%emt 0:00:35]} Nb4 {[%emt 0:00:48]} 18. Qe2 {[%emt 0:04:47]} d5 {[%emt 0:03:05]} 19. a3 {[%emt 0:12:22]} Nxc2+ {[%emt 0:01:06]} 20. Qxc2 {[%emt 0:00:03]} c6 {[%emt 0:00:40]} 21. Nc3 {[%emt 0:02:18]} d4 {[%emt 0:00:50]} 22. Nb1 {[%emt 0:02:13]} Rae8 {[%emt 0:10:37]} 23. Bf4 {[%emt 0:03:04]} Be5 {[%emt 0:02:54]} 24. Qc1 {[%emt 0:02:38]} e3 {[%emt 0:00:52]} 25. Bxe5 {[%emt 0:08:40]} Qxe5 {[%emt 0:01:24]} 26. O-O {[%emt 0:01:18]} Kh8 {[%emt 0:00:18]} 27. Kg2 {[%emt 0:02:51]} f4 {[%emt 0:02:02]} 28. fxe3 {[%emt 0:00:01]} Qe4+ {[%emt 0:00:48]} 29. Kg1 {[%emt 0:00:16]} fxe3 {[%emt 0:01:07]} 30. Nd2 {[%emt 0:03:45]} exd2 {[%emt 0:01:38]} 31. Qxd2 {[%emt 0:00:04]} Rxf1+ {[%emt 0:00:39]} 32. Rxf1 {[%emt 0:00:03]} Qe3+ {[%emt 0:00:32]} 33. Qf2 {[%emt 0:01:30]} Kg7 {[%emt 0:00:26]} 34. c5 {[%emt 0:01:04]} d3 {[%emt 0:00:34]} 35. Rd1 {[%emt 0:00:39]} b6 {[%emt 0:00:32]} 36. Qxe3 {[%emt 0:00:36]} Rxe3 {[%emt 0:00:02]} 37. Kf2 {[%emt 0:00:15]} Re2+ {[%emt 0:00:32]} 38. Kf3 {[%emt 0:00:04]} Rxb2 {[%emt 0:00:11]} 39. cxb6 {[%emt 0:00:14]} axb6 {[%emt 0:00:16]} 40. Rxd3 {[%emt 0:00:00]} c5 {[%emt 0:00:00]} 41. Rc3 Kf6 {[%emt 0:02:24]} 42. Ke4 {[%emt 0:01:52]} Ke6 43. h4 {[%emt 0:00:41]} Rb1 {[%emt 0:01:31]} 44. Kd3 {[%emt 0:04:07]} Kd5 {[%emt 0:01:13]} 45. Kc2 {[%emt 0:00:42]} Rg1 {[%emt 0:00:10]} 46. Rd3+ {[%emt 0:00:56]} Kc4 {[%emt 0:01:04]} 47. Rc3+ {[%emt 0:01:06]} Kd4 {[%emt 0:00:05]} 48. Rd3+ {[%emt 0:00:03]} Ke5 1/2-1/2

[Event "EYTCC Girls U18 2022"]
[Site "Thessaloniki"]
[Date "2022.07.13"]
[Round "2.4"]
[White "Mihelic, Vesna"]
[Black "Sulyok, Eszter"]
[Result "1-0"]
[ECO "B40"]
[WhiteElo "2029"]
[BlackElo "2091"]
[Annotator "ChessBase"]
[PlyCount "81"]
[EventDate "2022.07.12"]
[EventType "team-tourn"]
[EventCountry "GRE"]
[SourceTitle "playchess.com"]
[Source "ChessBase"]
[SourceQuality "1"]
[WhiteTeam "Slovenia"]
[BlackTeam "Hungary"]
[WhiteTeamCountry "SLO"]
[BlackTeamCountry "HUN"]
[TimeControl "40/5400+30:1800+30"]

1. e4 {[%emt 0:00:04]} c5 {[%emt 0:00:12]} 2. Nf3 {[%emt 0:00:16]} e6 {[%emt 0:00:05]} 3. c3 {[%emt 0:00:05]} d5 {[%emt 0:01:42]} 4. exd5 {[%emt 0:00:25]} Qxd5 {[%emt 0:03:28]} 5. d4 {[%emt 0:00:23]} Nf6 {[%emt 0:00:13]} 6. Be2 {[%emt 0:00:31]} cxd4 {[%emt 0:01:58]} 7. cxd4 {[%emt 0:00:39]} Nc6 {[%emt 0:03:49]} 8. O-O {[%emt 0:01:40]} Be7 {[%emt 0:01:02]} 9. Nc3 {[%emt 0:00:23]} Qd6 {[%emt 0:00:21]} 10. Nb5 {[%emt 0:00:43]} Qd8 {[%emt 0:00:46]} 11. Bf4 {[%emt 0:00:43]} O-O {[%emt 0:02:02]} 12. Bc7 {[%emt 0:10:07]} Qe8 {[%emt 0:10:39]} 13. Ne5 {[%emt 0:05:08]} Nxe5 {[%emt 0:15:31]} 14. dxe5 {[%emt 0:05:02]} Nd5 {[%emt 0:00:15]} 15. Rc1 {[%emt 0:29:02]} a6 {[%emt 0:06:54]} 16. Nd6 {[%emt 0:02:34]} Qd7 {[%emt 0:00:23]} 17. Ne4 {[%emt 0:08:53]} b6 {[%emt 0:23:49]} 18. Bf3 {[%emt 0:08:50]} Ra7 {[%emt 0:04:56]} 19. Bd6 {[%emt 0:03:30]} Bb7 {[%emt 0:11:15]} 20. Bxe7 {[%emt 0:02:08]} Qxe7 {[%emt 0:00:06]} 21. Nd6 {[%emt 0:00:28]} Rd8 {[%emt 0:02:50]} 22. Bxd5 {[%emt 0:02:15]} exd5 {[%emt 0:00:10]} 23. Qd4 {[%emt 0:00:49]} Qd7 {[%emt 0:07:22]} 24. Qxb6 {[%emt 0:00:24]} Ba8 {[%emt 0:00:02]} 25. Nxf7 {[%emt 0:06:08]} Rf8 {[%emt 0:01:39]} 26. e6 {[%emt 0:03:22]} Qe7 {[%emt 0:00:09]} 27. Rfe1 {[%emt 0:01:56]} Rb7 {[%emt 0:01:21]} 28. Qd6 {[%emt 0:01:00]} Qe8 {[%emt 0:00:44]} 29. b3 {[%emt 0:03:56]} Re7 {[%emt 0:00:18]} 30. Rc7 {[%emt 0:01:51]} Rxc7 {[%emt 0:00:52]} 31. Qxc7 {[%emt 0:00:01]} d4 {[%emt 0:00:11]} 32. Qd6 {[%emt 0:01:34]} Qb5 {[%emt 0:00:42]} 33. e7 {[%emt 0:00:43]} Re8 {[%emt 0:00:06]} 34. Ne5 {[%emt 0:01:22]} Qd5 {[%emt 0:00:37]} 35. Qxd5+ {[%emt 0:00:28]} Bxd5 {[%emt 0:00:04]} 36. Nc4 {[%emt 0:00:25]} Bxc4 37. bxc4 {[%emt 0:00:01]} Kf7 {[%emt 0:00:57]} 38. Kf1 {[%emt 0:00:07]} d3 {[%emt 0:00:56]} 39. Re3 {[%emt 0:00:23]} Rxe7 {[%emt 0:01:03]} 40. Rxe7+ {[%emt 0:00:00]} Kxe7 {[%emt 0:00:00]} 41. Ke1 {[%emt 0:00:06]} 1-0

[Event "EYTCC Girls U18 2022"]
[Site "Thessaloniki"]
[Date "2022.07.13"]
[Round "2.4"]
[White "Buchholz, Maja"]
[Black "Rozmanec, Pia"]
[Result "*"]
[ECO "B40"]
[WhiteElo "1879"]
[BlackElo "1642"]
[Annotator "NA"]
[PlyCount "23"]
[EventDate "2022.07.12"]
[EventType "team-tourn"]
[EventCountry "GRE"]
[SourceTitle "playchess.com"]
[Source "ChessBase"]
[SourceQuality "1"]
[WhiteTeam "Germany"]
[BlackTeam "Slovenia"]
[WhiteTeamCountry "GER"]
[BlackTeamCountry "SLO"]
[TimeControl "40/5400+30:1800+30"]

1. e4 {[%emt 0:00:04]} c5 {[%emt 0:00:12]} 2. Nf3 {[%emt 0:00:16]} e6 {[%emt 0:00:05]} 3. c3 {[%emt 0:00:05]} d5 {[%emt 0:01:42]} 4. exd5 {[%emt 0:00:25]} Qxd5 {[%emt 0:03:28]} 5. d4 {[%emt 0:00:23]} Nf6 {[%emt 0:00:13]} 6. Be2 {[%emt 0:00:31]} cxd4 {[%emt 0:01:58]} 7. cxd4 {[%emt 0:00:39]} Nc6 {[%emt 0:03:49]} 8. O-O {[%emt 0:01:40]} Be7 {[%emt 0:01:02]} 9. Nc3 {[%emt 0:00:23]} Qd6 {[%emt 0:00:21]} 10. Nb5 {[%emt 0:00:43]} Qd8 {[%emt 0:00:46]} 11. Bf4 {[%emt 0:00:43]} O-O {[%emt 0:02:02]} 12. Bc7 {[%emt 0:10:07]} *